Cogmind - Beta 14 @@@ ROGUE MODE // 2024.11.12 @ 07:30:39 Player: Fangrelle Result: Self-destructed Performance ------------- Evolutions (5) 2500 Regions Visited (8) 1600 Robots Destroyed (192) 960 Value Destroyed (6802) 6802 Prototype IDs (25) 500 Alien Tech Used (0) 0 Bonus (2177) 2177 TOTAL SCORE: 14539 Bonus ------- High Alert Combat Kills 222 Follower Combat Kills 1109 Entered Garrisons 200 Used RIF Installer 500 Registered with UFD 300 Friendly Fire -154 Cogmind --------- Core Integrity 812/1000 Matter 85/300 Energy 260/350 System Corruption 11% Temperature Cool (41) Movement Core (2250) Ox44 Location -5/Factory Parts ------- > --- POWER (2) -------- Reinforced Quantum Reactor > --- PROPULSION (2) --- (None) > --- UTILITY (11) ----- Huge Storage Unit Enhanced Optical Array Advanced Signal Interpreter Experimental Terrain Scan Processor Layered Heavy Armor Plating Relay Coupler [Swarmer] (6) Relay Coupler [Grunt] (25) Relay Coupler [Brawler] (25) Improved Dynamic Insulation System > --- WEAPON (2) ------- (None) > --- INVENTORY (25) --- Gyrokinetic Inverter Deep Structural Scanner Surveybot 17 Chip Makeshift Salvage Targeting Computer Transmission Jammer Advanced Phase Shifter Focal Shield Force Field Relay Coupler [NC] (31) Relay Coupler [Swarmer] (45) Relay Coupler [Grunt] (33) Relay Coupler [Grunt] (31) Relay Coupler [Grunt] (28) Relay Coupler [Duelist] (27) Relay Coupler [Sentry] (20) Relay Coupler [Sentry] (23) Relay Coupler [Sentry] (19) Relay Coupler [Behemoth] (11) Improved Datajack Remote Datajack Peak State ------------ > --- POWER ------------ Light Antimatter Reactor Reinforced Quantum Reactor > --- PROPULSION ------- Armored Wheel Gyrokinetic Inverter > --- UTILITY ---------- Huge Storage Unit Enhanced Optical Array Advanced Signal Interpreter Advanced Terrain Scanner Experimental Terrain Scan Processor Focal Shield Hacking Suite Hacking Suite Relay Coupler [Swarmer] Relay Coupler [Grunt] Relay Coupler [Brawler] > --- WEAPON ----------- Remote Datajack > --- INVENTORY -------- Deep Structural Scanner Enhanced Optical Array Surveybot 17 Chip Makeshift Salvage Targeting Computer Transmission Jammer Advanced Phase Shifter Advanced Phase Shifter Layered Heavy Armor Plating Force Field Relay Coupler [NC] Relay Coupler [NC] Relay Coupler [Swarmer] Relay Coupler [Grunt] Relay Coupler [Grunt] Relay Coupler [Grunt] Relay Coupler [Duelist] Relay Coupler [Sentry] Relay Coupler [Sentry] Relay Coupler [Sentry] Relay Coupler [Behemoth] Improved Dynamic Insulation System Guided EMP Blaster Improved Datajack [Rating: 83] Favorites ----------- Power Cooled Ion Engine Engine Cooled Ion Engine Power Core Light Nuclear Core Reactor Reinforced Quantum Reactor Propulsion Advanced Treads Treads Advanced Treads Leg Aluminum Leg Wheel Armored Wheel Hover Unit Gravmag System Flight Unit Improved Flight Unit Utility Hacking Suite Device Remote Shield Storage Huge Storage Unit Processor Enhanced Optical Array Hackware Hacking Suite Protection Light Armor Plating Weapon Enhanced Autogun Energy Gun Spread Laser Energy Cannon Heavy Plasma Cannon Ballistic Gun Enhanced Autogun Ballistic Cannon Magnetic Acceleration Cannon Launcher Guided EMP Blaster Special Weapon Plasma Cutter Impact Weapon Mace Slashing Weapon Chainsword Special Melee Weapon Improved Datajack Build | -11 -10 -9 -9 -9 -9 -6 -6 -5 ------- Run | Yrd Mat Mat Sto Rec Scr Fac Gar Fac Slots Evolved 10 | . . 2 . . . 6 . 2 Power 1 | . . . . . . 1 . . Propulsion . | . . . . . . . . . Utility 9 | . . 2 . . . 5 . 2 Weapon . | . . . . . . . . . Parts Attached 244 | . 20 46 33 24 9 54 43 15 Power 26 | . 1 6 3 1 . 9 6 . Engine 22 | . 1 6 3 1 . 7 4 . Core 2 | . . . . . . 2 . . Reactor 2 | . . . . . . . 2 . Propulsion 40 | . 3 12 5 2 4 7 5 2 Treads 23 | . 3 10 4 . 2 2 2 . Leg . | . . . . . . . . . Wheel 13 | . . 2 . 2 2 3 3 1 Hover 2 | . . . . . . 1 . 1 Flight 2 | . . . 1 . . 1 . . Utility 91 | . 3 16 5 9 3 29 18 8 Device 46 | . 1 11 2 4 . 16 7 5 Storage 8 | . 1 1 1 2 1 2 . . Processor 6 | . 1 . . . 1 . 3 1 Hackware 6 | . . 1 . . . 1 3 1 Protection 25 | . . 3 2 3 1 10 5 1 Artifact . | . . . . . . . . . Weapon 87 | . 13 12 20 12 2 9 14 5 Energy Gun 22 | . 7 5 1 . . 4 4 1 Energy Cannon 4 | . 1 1 . . . 1 . 1 Ballistic Gun 26 | . 2 5 12 5 2 . . . Ballistic Cannon 2 | . . 1 . . . 1 . . Launcher 2 | . . . 1 . . . . 1 Special Weapon 9 | . 1 . 2 1 . . 4 1 Impact Weapon 8 | . 2 . 4 1 . 1 . . Slashing Weapon 6 | . . . . . . 2 4 . Piercing Weapon . | . . . . . . . . . Special Melee Weapon 8 | . . . . 5 . . 2 1 Unidentified Prototypes 13 | . . 6 3 . . 3 . 1 Parts Lost 45 | . 3 13 . . . 12 9 8 Power 7 | . 1 1 . . . 2 2 1 Propulsion 12 | . 1 4 . . . 3 2 2 Utility 15 | . . 5 . . . 5 2 3 Weapon 11 | . 1 3 . . . 2 3 2 Highest Loss Streak 6 | . 1 3 . . . 3 3 6 To Critical Strikes . | . . . . . . . . . Average Slot Usage (%) 96 | . 98 95 98 99 99 90 94 90 Engine 10 | . 13 10 10 11 11 11 6 . Treads 12 | . 27 20 21 10 . 7 4 . Wheel 6 | . . . . 11 22 5 7 7 Device 10 | . . 16 12 10 2 12 11 5 Storage 9 | . 14 11 11 11 10 7 6 5 Processor 6 | . 12 1 . . 8 6 15 17 Hackware 11 | . . 9 11 11 11 12 17 32 Protection 7 | . . 2 9 10 10 11 5 . Energy Gun 4 | . 19 9 . . . 2 6 . Ballistic Gun 11 | . 3 12 19 18 21 4 . . Peak Build Rating 83 | 6 13 33 37 33 38 73 77 83 Average Rating 40 | 6 10 26 32 30 35 65 65 77 On Entrance 30 | 6 6 12 33 33 27 38 51 72 Naked Turns . | . . . . . . . . . Heaviest Build 154 | 13 51 102 104 102 102 146 154 129 Greatest Support 44 | 20 40 44 44 44 24 44 40 24 Greatest Overweight (x) 51 | . 2 32 32 4 4 44 51 11 Average Overweight (x) 3 | . 1 2 2 3 3 4 5 9 Largest Inventory Capacity 25 | 8 20 25 25 25 25 25 25 25 Average Capacity 24 | 8 19 23 25 25 24 25 25 25 Most Carried 25 | 6 18 25 25 25 25 25 25 25 Average Carried 22 | 6 11 23 24 24 23 22 24 23 Final Capacity 25 | 8 20 25 25 25 25 25 25 25 Final Carried 25 | 6 18 25 25 25 25 24 25 20 Class Distribution -------------------- 45% | Mutant 26% | Commander-Mutant 12% | Scavenger-Mutant 11% | Hacker-Mutant 4% | Bothacker-Mutant Dominant Class ---------------- Mutant | -10/Materials Mutant | -9/Materials Mutant | -9/Storage Commander-Mutant | -9/Recycling Commander-Mutant | -9/Scraptown Hacker-Mutant | -6/Factory Scavenger-Mutant | -6/Garrison Bothacker-Mutant | -5/Factory Resources | -11 -10 -9 -9 -9 -9 -6 -6 -5 ----------- Run | Yrd Mat Mat Sto Rec Scr Fac Gar Fac Matter Collected 5742 | 169 242 1352 953 843 370 1344 439 30 Remotely 1415 | . . 780 150 395 90 . . . Salvage Created 7491 | . 886 2153 1436 467 . 2056 493 . Parts 425 | . 68 148 86 17 . 94 12 . Haulers Intercepted 12 | . 1 6 5 . . . . . Recyclers Shooed 8 | . . 1 1 . . 6 . . Parts Field Recycled . | . . . . . . . . . Retrieved Matter . | . . . . . . . . . Parts Self-Destructed . | . . . . . . . . . Prevented . | . . . . . . . . . Kills | -11 -10 -9 -9 -9 -9 -6 -6 -5 ------- Run | Yrd Mat Mat Sto Rec Scr Fac Gar Fac Combat Hostiles Destroyed 134 | . 20 47 25 4 . 32 6 . Melee 1 | . . . . . . 1 . . Guns 110 | . 12 45 25 4 . 19 5 . Cannons 15 | . 7 . . . . 8 . . AOE 6 | . 1 2 . . . 3 . . Classes Destroyed 16 | . 8 4 . 2 . 1 1 . Worker 16 | . 3 7 2 . . 4 . . Builder 4 | . 1 1 . . . 2 . . Tunneler 1 | . 1 . . . . . . . Hauler 12 | . 1 6 5 . . . . . Recycler 8 | . . 1 1 3 . 3 . . Mechanic 1 | . . 1 . . . . . . Operator 5 | . 1 2 2 . . . . . Watcher 11 | . 2 5 2 . . 2 . . Swarmer 26 | . 5 10 6 . . 4 1 . Grunt 69 | . 15 26 13 . . 15 . . Brawler 1 | . . . . . . 1 . . Protector 2 | . . 1 . . . 1 . . Sentry 26 | . . 10 6 2 . 5 3 . Demolisher 2 | . . . . 1 . 1 . . Hunter 1 | . . . . . . . 1 . Programmer 8 | . . . . 1 . 6 1 . Best Kill Streak 9 | . 3 5 9 3 . 5 1 . Combat Bots Only 8 | . 3 5 8 1 . 4 1 . Max Kills in Single Turn 3 | . 2 2 1 1 . 3 1 . Gunslinging 1 | . . 1 . . . . . . Exploded 2 | . 1 1 . . . 2 . . Melee 1 | . . . . . . 1 . . Uniques/NPCs Destroyed . | . . . . . . . . . Combat | -11 -10 -9 -9 -9 -9 -6 -6 -5 -------- Run | Yrd Mat Mat Sto Rec Scr Fac Gar Fac Hostile Shots Fired 1124 | . 68 263 119 19 . 465 106 84 Missed 303 | . 14 68 34 4 . 116 38 29 Damage Taken 9817 | . 626 2247 881 200 . 3801 983 1079 Core 1147 | . 113 257 75 24 . 329 161 188 Absorbed by Shields 1310 | . . 195 218 36 . 861 . . Redirected to Shielding 101 | . . . . . . 82 19 . Regen/Repaired (Parts) 1080 | . 114 . 920 . . 46 . . Core Remaining (%) 51 | 100 54 . . . 11 . 42 . Volleys Fired 538 | . 62 149 86 35 . 144 28 34 Largest 2 | . 2 2 2 2 . 2 2 1 Hottest 170 | . 130 130 50 50 . 143 170 81 Shots Fired 985 | . 121 290 172 65 . 258 45 34 Gun 804 | . 80 285 170 65 . 162 42 . Cannon 154 | . 38 5 . . . 96 2 13 Launcher 1 | . . . . . . . . 1 Special 26 | . 3 . 2 . . . 1 20 Kinetic 555 | . 4 132 170 65 . 184 . . Thermal 306 | . 88 127 2 . . 53 36 . Explosive . | . . . . . . . . . Electromagnetic 104 | . 29 31 . . . 21 9 14 Robot Hit Streak 47 | . 7 17 11 8 . 47 21 4 Robot Miss Streak 8 | . 5 8 3 3 . 3 4 2 Penetration Max . | . . . . . . . . . Secondary Targets 17 | . . 8 5 . . 4 . . Max Gunslinging Chain 1 | . . 1 1 . . 1 . . Shots Hit Robots 753 | . 82 224 103 93 . 173 52 26 Core Hits 443 | . 73 185 46 15 . 92 30 2 Critical Kills 3 | . . 1 1 . . 1 . . Critical Parts Destroyed 1 | . . . 1 . . . . . Critical Strikes 11 | . . 1 2 . . 5 2 1 Meltdown 1 | . . . . . . 1 . . Destroy 3 | . . 1 2 . . . . . Blast 3 | . . . . . . 3 . . Corrupt 2 | . . . . . . 1 . 1 Sever 2 | . . . . . . . 2 . Melee Attacks 105 | . 2 . 7 51 . 14 19 12 Impact 9 | . 2 . 7 . . . . . Slashing 33 | . . . . . . 14 19 . Piercing . | . . . . . . . . . Sneak Attacks 64 | . . . 1 50 . 4 . 9 Combat Hostiles 40 | . . . . 31 . . . 9 Follow-up Attacks . | . . . . . . . . . Damage Inflicted 15081 | . 1240 3951 1921 863 . 5412 1608 86 Guns 9692 | . 785 3411 1853 863 . 2017 763 . Cannons 2874 | . 387 21 . . . 2372 38 56 Explosions 1158 | . 68 516 . . . 544 . 30 Melee 1342 | . . . 68 . . 479 795 . Ramming 3 | . . 3 . . . . . . Kinetic 6869 | . 28 1526 1853 863 . 2599 . . Thermal 4782 | . 948 1660 . . . 1451 723 . Explosive 848 | . . 304 . . . 544 . . Electromagnetic 1237 | . 264 458 . . . 339 90 86 Impact 68 | . . . 68 . . . . . Slashing 1274 | . . . . . . 479 795 . Piercing . | . . . . . . . . . Highest Corruption 11 | . 2 . 2 3 . 2 2 11 Average Corruption 1 | . 1 . 1 2 . 1 1 5 Corruption Purged 6 | . . . . . . 4 2 . Corruption Blocked . | . . . . . . . . . Effects 119 | . 6 . 41 31 . 5 26 10 Message Errors 26 | . . . 10 7 . 1 7 1 Matter Fused 27 | . 1 . 8 7 . 3 6 2 Heat Flow Errors 15 | . 3 . 6 4 . . . 2 Energy Discharges 14 | . 1 . 8 1 . . 2 2 Parts Rejected 1 | . . . . . . . . 1 Parts Fused 1 | . . . . . . . 1 . Data Loss (minor) 21 | . . . 6 7 . 1 5 2 Data Loss (major) 4 | . . . 1 . . . 3 . Misfires 7 | . 1 . 2 3 . . 1 . Alerts 1 | . . . . 1 . . . . Weapon Failures 2 | . . . . 1 . . 1 . Overload Shots . | . . . . . . . . . Overflow Damage 345 | . . 75 . . . 209 61 . Projectiles 36 | . . . . . . 36 . . Explosions 164 | . . 75 . . . 52 37 . Melee 145 | . . . . . . 121 24 . Knockbacks 9 | . . 1 . . . 8 . . Impact . | . . . . . . . . . Kinetic 8 | . . 1 . . . 7 . . Secondary 1 | . . . . . . 1 . . Self-Inflicted Damage 560 | . . 166 . . . 241 153 . Shots 8 | . . 4 . . . 3 1 . Rammed . | . . . . . . . . . Targets Rammed 1 | . . 1 . . . . . . Kicked . | . . . . . . . . . Crushed 1 | . . 1 . . . . . . Highest Temperature 473 | . 287 401 368 197 . 473 92 399 Average Temperature 97 | . 87 70 81 39 . 139 34 195 Received Heat Transfer 2389 | . 207 759 365 9 . 940 109 . Effects 13 | . . 3 1 . . 7 . 2 Shutdowns 8 | . . . 1 . . 5 . 2 Energy Bleed 2 | . . . . . . 2 . . Interference 3 | . . 3 . . . . . . Siege Activations . | . . . . . . . . . Robots Corrupted . | . . . . . . . . . Combat Hostiles . | . . . . . . . . . Parts Fried 6 | . 2 1 . . . 3 . . Impact Corruptions . | . . . . . . . . . Robots Melted 2 | . . . . . . 1 1 . Combat Hostiles 2 | . . . . . . 1 1 . Parts Melted 14 | . . 3 . . . 5 6 . Heat Transferred 7567 | . 1475 2080 . . . 2400 1612 . Parts Sabotaged . | . . . . . . . . . Parts Stolen . | . . . . . . . . . Parts Stripped . | . . . . . . . . . Power Chain Reactions 5 | . 1 4 . . . . . . Alert | -11 -10 -9 -9 -9 -9 -6 -6 -5 ------- Run | Yrd Mat Mat Sto Rec Scr Fac Gar Fac Peak Influence 2842 | . 229 739 386 99 . 474 2842 1555 Initial 1491 | . . 46 256 54 . . 331 1491 Average 415 | . 111 413 161 41 . 150 1425 1493 Maximum Alert Level 5 | . 1 3 1 . . 2 5 4 Low Security (%) 54 | 100 94 20 76 100 . 71 . . Level 1 14 | . 5 14 23 . . 23 10 . Level 2 16 | . . 55 . . . 4 18 . Level 3 2 | . . 8 . . . . 4 . Level 4 6 | . . . . . . . 28 100 Level 5 5 | . . . . . . . 37 . High Security . | . . . . . . . . . Max Security . | . . . . . . . . . Squads Dispatched 40 | . 6 7 5 . . 18 . 4 Investigation 16 | . 5 3 2 . . 6 . . Extermination 9 | . . . . . . 8 . 1 Reinforcement 6 | . 1 2 2 . . . . 1 Assault 4 | . . 2 . . . . . 2 Garrison 5 | . . . 1 . . 4 . . Intercept . | . . . . . . . . . Searches Triggered . | . . . . . . . . . Construction Impeded 1 | . . . . . . . . 1 Haulers Reinforced . | . . . . . . . . . Active Scanning Responses . | . . . . . . . . . Cargo Convoy Interrupts . | . . . . . . . . . Stealth | -11 -10 -9 -9 -9 -9 -6 -6 -5 --------- Run | Yrd Mat Mat Sto Rec Scr Fac Gar Fac Distress Signals 11 | . 1 2 4 1 . 3 . . Communications Jammed 26 | . . . . . . 26 . . Distress Signals 24 | . . . . . . 24 . . Times Spotted 242 | . 31 72 36 7 . 56 27 13 Peak Tracking Total 7 | . 4 5 7 2 . 5 3 5 Tactical Retreats 18 | . 3 5 2 . . 6 1 1 Traps | -11 -10 -9 -9 -9 -9 -6 -6 -5 ------- Run | Yrd Mat Mat Sto Rec Scr Fac Gar Fac Traps Triggered 17 | . 4 . 2 . . 2 8 1 Indirectly . | . . . . . . . . . Trap Hack Attempts . | . . . . . . . . . Triggered . | . . . . . . . . . Disarmed . | . . . . . . . . . Reprogrammed . | . . . . . . . . . Reused . | . . . . . . . . . Traps Extracted . | . . . . . . . . . Installed . | . . . . . . . . . Triggered 1 | . . 1 . . . . . . Machines | -11 -10 -9 -9 -9 -9 -6 -6 -5 ---------- Run | Yrd Mat Mat Sto Rec Scr Fac Gar Fac Machines Disabled 29 | . 2 1 9 . . 7 10 . Max in Single Turn 2 | . 1 1 1 . . 2 2 . Garrison Access 1 | . . . 1 . . . . . Garrison Relay 6 | . . . . . . . 6 . Phase Generator 1 | . . . . . . . 1 . Machines Repaired . | . . . . . . . . . Machines Dismantled 9 | . . . 2 . . . 7 . Machines Sabotaged . | . . . . . . . . . Overloaded Fab Kills . | . . . . . . . . . Hacking | -11 -10 -9 -9 -9 -9 -6 -6 -5 --------- Run | Yrd Mat Mat Sto Rec Scr Fac Gar Fac Machines Accessed 69 | . 10 12 14 12 8 10 2 1 Terminals 38 | . 7 9 9 6 . 4 2 1 Fabricators . | . . . . . . . . . Repair Stations 5 | . 1 . 2 . . 2 . . Recycling Units 13 | . 2 2 2 4 . 3 . . Scanalyzers 1 | . . 1 . . . . . . Garrison Access 2 | . . . 1 . . 1 . . Total Hacks 252 | . 32 39 59 46 48 21 5 2 Successful 187 | . 16 29 38 37 48 13 4 2 Failed 64 | . 15 10 21 9 . 8 1 . Catastrophic 5 | . 1 1 1 1 . . 1 . Database Lockouts 1 | . 1 . . . . . . . Manual 137 | . 29 34 32 21 . 15 4 2 Terminals 122 | . 23 32 33 17 . 10 5 2 Fabricators . | . . . . . . . . . Repair Stations 27 | . 2 . 20 . . 5 . . Recycling Units 27 | . 7 5 5 5 . 5 . . Scanalyzers 2 | . . 2 . . . . . . Garrison Access 2 | . . . 1 . . 1 . . Terminal Hacks 85 | . 2 4 5 24 48 . 2 . Record 71 | . . . . 24 47 . . . Robot Analysis 1 | . 1 . . . . . . . Open Door 2 | . . . 2 . . . . . Emergency Access Points 1 | . . . . . . . 1 . Alert Level 2 | . . 2 . . . . . . Unreport Threat 5 | . . 2 3 . . . . . Zone Layout 2 | . 1 . . . . . 1 . Derelict Proto ID Bank 1 | . . . . . 1 . . . Fabricator Hacks . | . . . . . . . . . Repair Station Hacks 24 | . 2 . 19 . . 3 . . Scan Component 13 | . 1 . 10 . . 2 . . Repair 11 | . 1 . 9 . . 1 . . Recycling Unit Hacks 6 | . 2 2 1 1 . . . . Report Inventory 5 | . 1 2 1 1 . . . . Retrieve Components 1 | . 1 . . . . . . . Scanalyzer 2 | . . 2 . . . . . . Insert Component 1 | . . 1 . . . . . . Analyze 1 | . . 1 . . . . . . Garrison Access Hacks 2 | . . . 1 . . 1 . . Unlock Access 1 | . . . . . . 1 . . Seal Access 1 | . . . 1 . . . . . Unauthorized Hacks 67 | . 10 21 11 12 . 9 2 2 Terminals 53 | . 7 19 10 8 . 5 2 2 Assimilate 7 | . 1 3 1 . . 2 . . Botnet 29 | . 5 9 5 5 . 2 2 1 Operators 6 | . 1 1 1 1 . 1 . 1 Skim 11 | . . 6 3 2 . . . . Fabricators . | . . . . . . . . . Repair Stations 2 | . . . . . . 2 . . Recycling Units 12 | . 3 2 1 4 . 2 . . Reject 2 | . 1 . . . . 1 . . Mask 2 | . 1 . . . . 1 . . Tunnel 8 | . 1 2 1 4 . . . . Fedlink 1 | . . . . . . 1 . . Scrapoids 1 | . . . . . . 1 . . Scanalyzers . | . . . . . . . . . Garrison Access . | . . . . . . . . . Data Cores Recovered . | . . . . . . . . . Used . | . . . . . . . . . Hacking Detections 45 | . 9 9 11 6 . 7 2 1 Full Trace Events 10 | . 5 . 2 . . 3 . . Feedback Events 1 | . . . 1 . . . . . Corruption 1 | . . . 1 . . . . . Feedback Blocked . | . . . . . . . . . Robot Schematics Acquired . | . . . . . . . . . Robots Built . | . . . . . . . . . Authchips . | . . . . . . . . . Time . | . . . . . . . . . Total Robot Build Rating . | . . . . . . . . . Part Schematics Acquired 1 | . . 1 . . . . . . Parts Built . | . . . . . . . . . Authchips . | . . . . . . . . . Time . | . . . . . . . . . Total Part Build Rating . | . . . . . . . . . Parts Repaired 11 | . 1 . 9 . . 1 . . Time 468 | . 26 . 417 . . 25 . . Parts Recycled . | . . . . . . . . . Recycled Matter . | . . . . . . . . . Retrieved Matter . | . . . . . . . . . Retrieved Components 8 | . 8 . . . . . . . Parts Scanalyzed 1 | . . 1 . . . . . . Part Schematics Acquired 1 | . . 1 . . . . . . Parts Damaged . | . . . . . . . . . Bothacking | -11 -10 -9 -9 -9 -9 -6 -6 -5 ------------ Run | Yrd Mat Mat Sto Rec Scr Fac Gar Fac Used RIF Installer 1 | . . . . . . . 1 . Robots Hacked 3 | . . . . . . . . 3 Non-combat . | . . . . . . . . . Combat 3 | . . . . . . . . 3 Robot Hacks Applied 6 | . . . . . . . . 6 reboot_system 2 | . . . . . . . . 2 overwrite_iff 3 | . . . . . . . . 3 streamctrl_high 1 | . . . . . . . . 1 Relay Couplers Released 28 | . . . . . . . 28 . Machine Destruction 28 | . . . . . . . 28 . Attached 4 | . . . . . . . 3 1 Fabnet Peak Effective % . | . . . . . . . . . Robots Rewired 34 | . . . . 23 . . 11 . Allies Hacked . | . . . . . . . . . Hacks Repelled . | . . . . . . . . . Allies | -11 -10 -9 -9 -9 -9 -6 -6 -5 -------- Run | Yrd Mat Mat Sto Rec Scr Fac Gar Fac Total Allies 41 | . . . . 23 . 5 11 2 Largest Group 20 | . . . . 20 18 18 11 1 Highest-Rated Group 367 | . . . . 248 206 206 367 32 Highest-Rated Ally 41 | . . . . 34 27 28 41 32 Total Orders 19 | . . . . 3 3 7 6 . STAY 8 | . . . . 1 2 2 3 . ROAM 5 | . . . . . . 4 1 . FOLLOW 5 | . . . . 1 1 1 2 . DROP 1 | . . . . 1 . . . . Ally Attacks 200 | . . . . 19 . 70 105 6 Total Damage 4192 | . . . . 236 . 1004 2820 132 Kills 42 | . . . . 6 . 9 26 1 Allies Corrupted 2 | . . . . 1 . . 1 . Allies Melted . | . . . . . . . . . Intel | -11 -10 -9 -9 -9 -9 -6 -6 -5 ------- Run | Yrd Mat Mat Sto Rec Scr Fac Gar Fac Robot Analysis Total 1 | . 1 . . . . . . . Derelict Logs Recovered . | . . . . . . . . . Drone Launches . | . . . . . . . . . Drone Recoveries . | . . . . . . . . . Exploration | -11 -10 -9 -9 -9 -9 -6 -6 -5 ------------- Run | Yrd Mat Mat Sto Rec Scr Fac Gar Fac Turns Passed 26604 | 5 2725 5062 4347 2202 3845 4513 3512 393 Spaces Moved 10218 | 5 965 1460 1136 921 2565 1534 1515 117 Core 24 | . . 10 8 . . 5 1 . Treads 4674 | . 965 1430 1128 327 . 586 238 . Legs 5 | 5 . . . . . . . . Wheels 5512 | . . 20 . 594 2565 941 1276 116 Hover 3 | . . . . . . 2 . 1 Flight . | . . . . . . . . . Fastest Speed 90 | 120 160 155 305 135 90 150 135 165 Average Speed 226 | 120 240 304 314 203 146 244 204 228 Slowest Speed 2600 | 120 320 1650 1650 305 150 2250 2600 515 Overloaded Moves . | . . . . . . . . . Propulsion Burnouts . | . . . . . . . . . Robots Hopped . | . . . . . . . . . Cave-ins Triggered . | . . . . . . . . . Exploration Rate (%) 68 | 2 99 98 97 99 94 30 95 4 Regions Visited 8 Branch Regions 3 Pre-discovered Areas 14 | . 1 4 1 4 4 . . . Known Exits Taken 3 | . . 1 1 . . 1 . . Unknown Exits Taken 4 | 1 1 . . 1 1 . . . Scrap Searched 9 | . . . . . 9 . . . Spaces Dug 4 | . 2 . . . . 2 . . Terrain Destroyed 168 | . 2 39 . . . 46 81 . Melee 4 | . 2 . . . . 2 . . Projectile 17 | . . 1 . . . 16 . . AOE 147 | . . 38 . . . 28 81 . Terrain Rammed . | . . . . . . . . . Walls Destroyed . | . . . . . . . . . Machines Disabled . | . . . . . . . . . Actions | -11 -10 -9 -9 -9 -9 -6 -6 -5 --------- Run | Yrd Mat Mat Sto Rec Scr Fac Gar Fac Total 12778 | 4 1240 1837 1758 1180 2652 2073 1814 220 Wait 1167 | . 162 102 466 117 25 255 12 28 Move 10210 | 4 964 1459 1135 920 2564 1533 1514 117 Hop . | . . . . . . . . . Pick Up 162 | . 19 35 4 8 31 29 33 3 Fast Attach 100 | . 7 21 13 5 3 27 18 6 Attach 40 | . 2 8 1 . . 11 10 8 Detach 15 | . 1 5 1 . . 3 2 3 Swap 104 | . 11 17 19 19 6 16 15 1 Drop 192 | . 10 40 14 13 23 41 43 8 Fire 538 | . 62 149 86 35 . 144 28 34 Melee 105 | . 2 . 7 51 . 14 19 12 Ram . | . . . . . . . . . Kick . | . . . . . . . . . Crush 1 | . . 1 . . . . . . Escape Stasis 38 | . . . . . . . 38 . Rewire 56 | . . . . . . . 56 . Trap . | . . . . . . . . . Miscellaneous 50 | . . . 12 12 . . 26 . Route ------- -11/Scrapyard -10/Materials (discovered 4 exits: *Mat x3 / [*Min]) -9/Materials (discovered 7 exits: *Mat x3 / [*Min x2] / *Sto x2) -9/Storage (discovered 2 exits: *Mat / *Rec) -9/Recycling (discovered 2 exits: [*Fac] / *Scr) -9/Scraptown (discovered 2 exits: *Fac x2) -6/Factory (discovered 8 exits: *Fac x3 / Low x2 / *Ext x2 / Gar) -6/Garrison (discovered 3 exits: *Fac x3) -5/Factory History --------- Turn | Location | Event 1 | -11/Scrapyard | Discovered new exit (range 2) 6 | -11/Scrapyard | Entered Materials 210 | -10/Materials | Discovered new exit (range 14) 303 | -10/Materials | Build established: Mutant 384 | -10/Materials | Discovered new exit (range 17) 904 | -10/Materials | Discovered new exit (range 18) 1312 | -10/Materials | Central database locked down 1627 | -10/Materials | Discovered new exit (range 5) 2096 | -10/Materials | Repaired Lgt. Treads 2731 | -10/Materials | Entered another Materials area 2731 | -9/Materials | Evolved 2 slots: Utility x2 3307 | -9/Materials | Build established: Scavenger-Mutant 3321 | -9/Materials | Discovered new exit (range 16) 3947 | -9/Materials | Discovered new exit (range 12) 4167 | -9/Materials | Build established: Mutant 4505 | -9/Materials | Lost 3 parts (1p2w) 4825 | -9/Materials | Build established: Scavenger-Mutant 5131 | -9/Materials | First assault squad dispatched 5171 | -9/Materials | Core integrity fell below 50% 5188 | -9/Materials | Build established: Mutant 5446 | -9/Materials | Discovered new exit (range 3) 6134 | -9/Materials | Discovered new exit (range 12) 6579 | -9/Materials | Discovered new exit (range 14) 7021 | -9/Materials | Identified exit to Materials 7055 | -9/Materials | Learned location of Zion (-7) 7079 | -9/Materials | Learned location of 1 exit from Storage 7095 | -9/Materials | Identified exit to Storage 7101 | -9/Materials | Learned location of 1 exit from Storage 7793 | -9/Materials | Entered Storage 7794 | -9/Storage | Identified exit to Recycling 8414 | -9/Storage | Repaired Remote Shield 8617 | -9/Storage | Destroyed 8 combat bots 9574 | -9/Storage | Garrison activated, responded to threat 9593 | -9/Storage | Core integrity fell below 20% 10465 | -9/Storage | Repaired Remote Shield 10505 | -9/Storage | Repaired Adv. Treads 10544 | -9/Storage | Repaired Adv. Treads 10606 | -9/Storage | Repaired Enh. Autogun 10668 | -9/Storage | Repaired Enh. Autogun 12023 | -9/Storage | Repaired Adv. Treads 12056 | -9/Storage | Repaired Hrd. Light Armor Plating 12108 | -9/Storage | Repaired Cld. Ion Engine 12131 | -9/Storage | Used back door to open Recycling access 12140 | -9/Storage | Entered Recycling 12722 | -9/Recycling | Discovered new exit (range 16) 13543 | -9/Recycling | Build established: Commander-Mutant 14201 | -9/Recycling | Scanned before Scraplab entrance 14231 | -9/Recycling | Entered Scraplab 14249 | -9/Recycling | Discovered new exit (range 2) 14342 | -9/Recycling | Entered Scraptown 14342 | -9/Scraptown | Accompanied by 18 allies 14342 | -9/Scraptown | System corruption cleaned by C-Scrubber 14555 | -9/Scraptown | Visited UFD Registry 14555 | -9/Scraptown | Registered with UFD as "Metalbucket" 14576 | -9/Scraptown | Visited TADAMA 14596 | -9/Scraptown | Visited Awakened 14617 | -9/Scraptown | Visited Observation Area 14638 | -9/Scraptown | Visited Spacefarers 14650 | -9/Scraptown | Visited Artisan Demo Area 14681 | -9/Scraptown | Visited Bundlers 14854 | -9/Scraptown | Visited Symbiants 15144 | -9/Scraptown | Heard Great Nut preacher, LISTEN AND RECITE! 15381 | -9/Scraptown | Discovered new exit (range 11) 15572 | -9/Scraptown | Visited Junk Repository 15627 | -9/Scraptown | Visited Science Guys 15648 | -9/Scraptown | Visited Chapter 10 15689 | -9/Scraptown | Visited Scrap Suit Storage 15711 | -9/Scraptown | Visited Infowarlord's Domain 15759 | -9/Scraptown | Visited Abandonware Association 15798 | -9/Scraptown | Learned abandonware demo "POISON.EXE" 15798 | -9/Scraptown | Learned abandonware demo "MELTYB.EXE" 15839 | -9/Scraptown | Visited Cartography Club 16482 | -9/Scraptown | Found Exp. Terrain Scan Processor 16652 | -9/Scraptown | Found Surveybot 17 Chip 16773 | -9/Scraptown | Learned location of Lower Caves (-6) 16773 | -9/Scraptown | Learned location of Proximity Caves (-5) 16773 | -9/Scraptown | Learned 8 Factory zone layouts 16773 | -9/Scraptown | Learned 24 Factory zone layouts 16773 | -9/Scraptown | Learned 12 Upper Caves zone layouts 16773 | -9/Scraptown | Learned 16 Proximity Caves zone layouts 16773 | -9/Scraptown | Learned 4 Armory zone layouts 16773 | -9/Scraptown | Learned Storage emergency access door positions 16773 | -9/Scraptown | Learned location of 1 exit from Upper Caves 16773 | -9/Scraptown | Learned location of 2 exits from Upper Caves 16807 | -9/Scraptown | Found Deep Structural Scanner 17754 | -9/Scraptown | Visited Curators Association 17812 | -9/Scraptown | Discovered new exit (range 5) 18187 | -9/Scraptown | Entered Factory 18187 | -6/Factory | Accompanied by 18 allies 18187 | -6/Factory | Evolved 6 slots: Power x1, Utility x5 18188 | -6/Factory | Identified exit to Lower Caves 18189 | -6/Factory | Identified exit to Factory 18189 | -6/Factory | Identified exit to Extension 18989 | -6/Factory | Lost 11 allies 19206 | -6/Factory | Spotted B-75 Beast 19257 | -6/Factory | Build established: Scavenger-Mutant 19797 | -6/Factory | Build established: Hacker-Mutant 20218 | -6/Factory | Repaired Remote Shield 20603 | -6/Factory | Scrapoid reinforcements arrived 21304 | -6/Factory | Discovered exit to Factory (range 22) 22542 | -6/Factory | Lost 3 parts (1p2n) 22591 | -6/Factory | Lost 3 parts (1p1u1w) 22599 | -6/Factory | Garrison activated, responded to threat 22699 | -6/Factory | Identified exit to Garrison 22700 | -6/Factory | Entered Garrison 22739 | -6/Garrison | Heavy support dispatched to Factory 22814 | -6/Garrison | Triggered checkpoint 22849 | -6/Garrison | Triggered checkpoint 22883 | -6/Garrison | Garrison Relay disabled 22884 | -6/Garrison | Core integrity fell below 50% 22905 | -6/Garrison | Lost 3 parts (2n1w) 22955 | -6/Garrison | Build established: Scavenger-Mutant 23113 | -6/Garrison | Phase Generator disabled 23185 | -6/Garrison | Heavy support dispatched to Factory 23731 | -6/Garrison | Build established: Commander-Mutant 23732 | -6/Garrison | Triggered checkpoint 23740 | -6/Garrison | Triggered checkpoint 23810 | -6/Garrison | Triggered checkpoint 23840 | -6/Garrison | Triggered checkpoint 24065 | -6/Garrison | Build established: Scavenger-Mutant 24082 | -6/Garrison | Discovered exit to Factory (range 19) 24158 | -6/Garrison | Triggered checkpoint 24339 | -6/Garrison | H-XX Assembler disabled 24708 | -6/Garrison | Build established: Commander-Mutant 24833 | -6/Garrison | Discovered exit to Factory (range 12) 24890 | -6/Garrison | Triggered checkpoint 25020 | -6/Garrison | Installed Relay Interface Framework 25237 | -6/Garrison | Garrison Relay disabled 25371 | -6/Garrison | Garrison Relay disabled 25503 | -6/Garrison | Garrison Relay disabled 25526 | -6/Garrison | Triggered checkpoint 25638 | -6/Garrison | Garrison Relay disabled 25640 | -6/Garrison | Build established: Bothacker-Mutant 25775 | -6/Garrison | Discovered exit to Factory (range 19) 26144 | -6/Garrison | Garrison Relay disabled 26212 | -6/Garrison | Entered Factory 26212 | -5/Factory | Accompanied by 1 ally 26212 | -5/Factory | Evolved 2 slots: Utility x2 26512 | -5/Factory | First assault squad dispatched 26565 | -5/Factory | System corruption reached 10% 26605 | -5/Factory | Self-destructed Last Messages --------------- 26572_ Adv. Phase Shifter destroyed. 26572_ U-05 Engineer lays Concrete. 26572_ Discarded Hacking Suite. 26572_ Lgt. Antimatter Reactor destroyed. 26574_ U-05 Engineer lays Concrete. 26575_ P-70 Sage resets P-70 Sage, system corruption cleaned. 26575_ U-05 Engineer lays Concrete. 26581_ Lrn. Proton Cannon destroyed. 26582_ U-05 Engineer lays Concrete. 26584_ P-70 Sage resets P-70 Sage, system corruption cleaned. 26585_ U-05 Engineer lays Concrete. 26586_ Power failure, Rnf. Quantum Reactor shutdown. 26586_ ALERT: Construction progress impeded, dispatching reinforcements to local area. 26588_ P-70 Sage resets U-05 Engineer, system corruption cleaned. 26590_ Discarded Hacking Suite. 26591_ System corrupted: Energy discharge (-9). 26592_ P-70 Sage resets P-70 Sage, system corruption cleaned. 26593_ Gui. EMP Blaster destroyed. 26596_ P-70 Sage resets P-70 Sage, system corruption cleaned. 26597_ Relay Coupler [NC] destroyed. Map ----- +----------------------------------------------------+ | ?????????????????????????????????????????????????? | | ?????????????????????????????????????????????????? | | ?????????????????????????????????????????????????? | | ?????????????????????????????????????????????????? | | ?????????????????????????????????????????????????? | | ?????????????????????????????????????????????????? | | ????????????????????????????????????????????????## | | ???????????????????????????????????????????????### | | ????????????????????????????????????????????????## | | ????????????????????????????????################## | | ????????????????????????????????# ##### | | ????????????????????????????????# ##### | | ????????????????????##########??# ##### | | ????????????????????# ####= ##### | | ????????????????????# """ + += ##### | | ????????###+##??????# """ ####* ##### | | ??????? ?????# """ #??# ##### | | ??????? ????# #??# ##### | | ??????? ??# """ #??# ! ##### | | ?????????? ?# """ #??# %= ##### | | ???????????? # """ #??# [ ##### | | ??????????????# #??# ##### | | ??????????????# ###+#############+########## | | ??????????????# kp p % ## | | ??????????????# ## | | ??????????????# @ ## | | ??????????????# ## | | ??????????????# w ## | | ??????????????############################# ## | | ?????????????????????????????????????#?#?## ## | | ?????????????????????????????????????###### | | ????????????????????????????????????#??#??# | | ????????????????????????????????????####### | | ??????????????????????????????????####?#### | | ??????????????????????????????????#?####?## | | ????????????????????????????????????#??#######+### | | ??????????????????????????????????####?# # | | ???????????????????????????????????##### "T" # | | ???????????????????????????????????##??# # | | ??????????????????????????????????????## # | | ??????????????????????????????????#???## # | | ????????????????????????????????????#### """" # | | ??????????????????????????????????????## """" # | | ?????????????????????????????????????### """" # | | ????????????????????????????????????#??# """" ## | | ??????????????????????????????????????############ | | ??????????????????????????????????????#??#?####### | | ?????????????????????????????????????#?##?#???#### | | ????????????????????????????????????????#########? | | ???????????????????????????????????????????####??# | +----------------------------------------------------+ Best States ------------- Heat Dissipation 70 Energy Generation 41 Energy Capacity 700 Matter Stores 550 Matter Capacity 550 Sight Range 22 Terrain Scan Range 20 Terrain Scan Density 1010 ECM Strength 2 Jamming Range 12 EM Shielding 3 Armor Coverage 1800 Resistance: KI 20 Core Shielding 30 Utility Shielding 66 Phase Shifting 15 Evasion (%) 55 Target Analysis 5 Recoil Reduction 2 Offensive Hacking 20 Relay Coupler Types 4 Relay Coupler Value 126 Authchip Count 9 Item Schematics ----------------- Hacking Suite | -9/Materials | Scanalyzed Robot Schematics ------------------ None Fabricated ------------ Nothing Alien Tech Used ----------------- None Achievements -------------- No Signal Total Silence We Are Legion Challenges ------------ None Game ------ Seed VortexHardenedMegatreads Manual? 0 Play Time 02:49:44 Cumulative 56.3 hours Start 2024.11.12 @ 03:46:06 End 2024.11.12 @ 07:30:39 Sessions 11 Manual Loads 0 Difficulty Rogue Special Mode None Game No. 102 Rogue 102 Adventurer 0 Explorer 0 Win Type - Total 0 Types 0/0/0/0/0/0/0/0/0 Lore% 39 Gallery% 34 Achievement% 34 Wizard Run 0 Options --------- Layout 0 ASCII 0 Keyboard 0 Movement Mouse Keybinds 0 Fullscreen 1 Font 24/Smallcaps Map View 91x25 Zoom Use 83% Tactical HUD 1 Map Filters NONE Filters NONE Steam 1 RUN: 6351044b-6c53-4b38-81ef-f1c869ac31d6